bitfinex/quotes_ETHUSD_20240709
["timestamp","ask_amount","ask_price","bid_price","bid_amount"]
[1720566530630,0.34141133,3068.6,3067.2,2.4492]
[1720566530842,0.66851133,3068.6,3067.2,2.4492]
[1720566530994,0.36685113,3068.5,3067.3,0.24492]
[1720566536022,0.69395113,3068.5,3067.3,0.24492]
[1720566536218,0.69395113,3068.5,3067.2,2.4492]
[1720566537036,0.55,3068.4,3067.2,2.4492]
[1720566537846,0.36685113,3068.5,3067.3,0.06519847]
[1720566538184,0.34141133,3068.6,3067.5,2.3433]
[1720566538342,0.34141133,3068.6,3067.6,0.06518739]
[1720566539480,0.34141133,3068.6,3067.5,2.3433]
[1720566540714,0.34141133,3068.6,3067.6,0.06519024]
[1720566542018,0.34141133,3068.6,3067.7,2.53778741]
[1720566542299,3.0,3068.8,3067.9,2.2524]
[1720566542507,3.64844874,3068.9,3067.9,2.2524]
[1720566544106,3.0,3068.8,3067.9,2.2524]
[1720566552385,3.0,3068.8,3067.6,2.3548]
[1720566552630,3.0,3068.8,3067.7,2.41997968]
[1720566553264,3.0,3068.8,3067.7,2.3548]
[1720566555567,0.60509129,3068.7,3067.7,2.3548]
[1720566556276,0.3271,3068.6,3067.7,2.3548]
[1720566556458,0.8771,3068.6,3067.1,2.3814]
[1720566556633,0.8771,3068.6,3067.2,0.23814]
[1720566557149,1.48243082,3068.6,3067.2,0.23814]
[1720566559387,1.15533082,3068.6,3067.2,0.23814]
[1720566559546,0.60533082,3068.5,3067.2,0.23814]
[1720566559749,0.50947698,3068.5,3067.3,0.261954]
[1720566559987,1.11476279,3068.5,3067.3,0.261954]
[1720566560245,0.50947698,3068.5,3067.3,0.261954]
[1720566564706,3.2595,3068.4,3067.1,2.3814]
[1720566565009,3.60545285,3068.3,3067.1,2.3814]
[1720566565157,1.15545285,3068.2,3067.1,2.3814]
[1720566567004,0.6054546,3068.1,3067.1,2.3814]
[1720566567157,1.1554546,3068.2,3067.1,2.61954]
[1720566568299,1.1554546,3068.2,3067.1,2.3814]
[1720566570221,0.55,3068.2,3067.1,2.3814]
[1720566570377,1.15552235,3068.2,3067.1,2.3814]
[1720566570976,2.3214,3068.1,3066.7,2.3559]
[1720566571188,2.3214,3068.1,3066.3,2.3559]
[1720566571189,2.3214,3067.9,3066.3,2.3559]
[1720566571479,0.60552235,3067.8,3066.3,2.3559]
[1720566571687,3.94690557,3067.8,3066.3,2.3559]
[1720566571888,1.23235291,3067.7,3066.4,0.49189]
[1720566572085,2.3868,3067.6,3066.3,2.3559]
[1720566572293,0.60552235,3067.5,3066.3,2.3559]
[1720566572517,3.93262235,3067.5,3066.3,2.3559]
[1720566572679,0.60552235,3067.4,3066.3,2.3559]
[1720566572880,1.23746459,3067.4,3066.4,0.49189]
[1720566573508,0.63194224,3067.4,3066.4,0.49189]
[1720566573681,1.2377324,3067.4,3066.3,2.3559]
[1720566573883,2.2659,3067.3,3065.8,5.0421]
[1720566574115,0.6058772,3067.2,3065.8,5.0421]
[1720566574313,0.6058772,3067.2,3065.9,0.50421]
[1720566574314,4.25624914,3067.2,3065.9,0.50421]
[1720566574615,0.6058772,3067.1,3065.9,0.50421]
[1720566574819,0.6059173,3067.1,3065.9,0.50421]
[1720566576540,2.2659,3067.0,3065.9,0.50421]
[1720566576840,0.6059173,3066.9,3065.8,2.4791]
[1720566577036,3.60596538,3066.9,3065.8,2.4791]
[1720566577330,0.60596538,3066.8,3065.8,5.0421]
[1720566577515,0.60596538,3066.8,3065.9,0.50421]
[1720566577753,0.60596538,3067.2,3065.9,0.50421]
[1720566578650,0.60596538,3067.2,3066.0,0.06521843]
[1720566578855,0.60596538,3067.2,3066.0,2.4791]
[1720566579168,0.60596538,3067.2,3066.1,0.298331]
[1720566580224,3.0,3067.3,3066.3,2.4153]
[1720566580532,3.64844874,3067.5,3066.4,0.06520862]
[1720566580862,0.60562122,3067.4,3066.4,0.06520862]
[1720566581957,3.60562122,3067.4,3066.4,0.06520862]
[1720566582271,3.0,3067.4,3066.4,0.06520862]
[1720566582477,3.0,3067.4,3066.5,0.24805086]
[1720566584091,3.0,3067.4,3066.5,0.31325945]
[1720566584878,3.0,3067.4,3066.5,0.24805086]
[1720566585280,3.0,3067.4,3066.6,2.50560558]
[1720566585485,3.0,3067.4,3066.6,2.50560559]
[1720566585657,3.0,3067.4,3066.7,0.27536565]
[1720566586480,3.0,3067.4,3066.8,0.06520558]
[1720566586780,3.0,3067.4,3066.7,0.27536565]
[1720566590859,3.0,3067.4,3066.8,0.06520333]
[1720566591385,3.0,3067.4,3066.7,0.27536565]
[1720566591574,3.0,3067.4,3066.8,0.27157657]
[1720566595768,0.60559869,3067.3,3066.8,0.27157657]
[1720566597221,3.0,3067.4,3066.8,0.27157657]
[1720566599419,0.60547771,3067.3,3066.8,0.27157657]
[1720566600837,0.60548109,3067.3,3066.8,0.27157657]
[1720566600988,1.33087407,3067.3,3066.6,2.4404]
[1720566601184,1.33087407,3067.3,3066.1,2.4019]
[1720566601723,0.60548109,3067.3,3066.1,2.4019]
[1720566602123,0.60548109,3067.3,3066.4,2.2706]
[1720566602664,0.60548109,3067.3,3066.9,1.067]
[1720566603026,3.0,3067.4,3067.0,2.2706]
[1720566603195,0.60548127,3067.3,3067.0,2.2706]
[1720566603597,0.60553433,3067.3,3067.0,2.2706]
[1720566604008,0.60553433,3067.7,3067.0,2.2706]
[1720566604332,0.60554108,3067.7,3067.0,2.2706]
[1720566604848,0.60556606,3067.7,3066.9,1.067]
[1720566605006,1.57236504,3067.7,3066.7,3.443]
[1720566606522,0.96679898,3067.7,3066.9,1.067]
[1720566606704,0.60551744,3067.7,3067.1,1.067]
[1720566606904,0.60551744,3067.7,3067.3,1.067]
[1720566607143,0.60551744,3067.7,3067.1,1.067]
[1720566608741,0.60551744,3067.7,3066.9,2.412]
[1720566609113,2.3597,3067.6,3066.6,2.4569]
[1720566609318,0.60551744,3067.5,3066.6,2.4569]
[1720566610058,0.60557278,3067.5,3066.6,2.4569]
[1720566613158,3.60557278,3067.5,3066.1,2.49]
[1720566613325,0.60567194,3067.4,3066.2,0.5051]
[1720566613722,0.60571544,3067.4,3066.2,0.5051]
[1720566616621,3.0,3067.5,3066.2,0.5051]
[1720566616821,0.60566837,3067.4,3066.2,0.5051]
[1720566617050,3.60566837,3067.5,3066.3,0.29951]
[1720566617248,0.60566837,3067.4,3066.3,0.29951]
[1720566617618,0.60566837,3067.4,3066.4,2.2932]
[1720566618051,0.60566837,3067.4,3066.5,0.06520923]
[1720566618246,0.60566837,3067.4,3066.6,0.23584092]
[1720566619971,0.60563772,3067.4,3066.6,0.23584092]
[1720566620188,0.60563772,3067.4,3066.4,2.2932]
[1720566622572,0.34135425,3067.3,3066.4,2.2932]
[1720566628855,0.34135425,3067.3,3066.8,1.067]
[1720566629889,0.34135425,3067.3,3066.9,1.067]
[1720566634682,0.34135425,3067.3,3067.1,1.067]
[1720566634896,0.34135425,3067.3,3067.2,0.33901]
[1720566639376,0.34135425,3067.3,3067.1,1.067]
[1720566645574,0.34135425,3067.3,3067.2,0.0651994]
[1720566645775,0.34135425,3067.3,3067.1,1.067]
[1720566650259,0.34135425,3067.3,3067.0,1.067]
[1720566650456,0.34135425,3067.3,3066.8,1.067]
[1720566651095,0.67439748,3067.3,3066.6,1.067]
[1720566651298,1.27997556,3067.3,3066.6,1.067]
[1720566651607,0.60557808,3067.2,3066.6,1.067]
[1720566651807,1.27997556,3067.3,3066.6,1.067]
[1720566651999,0.42799756,3067.2,3066.6,1.067]
[1720566653133,1.27997556,3067.3,3066.6,1.067]
[1720566653864,0.67439748,3067.3,3066.8,1.067]
[1720566654014,1.28008565,3067.3,3066.8,1.067]
[1720566654532,0.60565442,3067.2,3066.8,1.067]
[1720566654746,1.2800519,3067.3,3066.8,1.067]
[1720566657263,0.60567169,3067.2,3066.8,1.067]
[1720566657418,0.60566692,3067.2,3066.8,1.067]
[1720566657620,0.94702117,3067.3,3066.8,1.067]
[1720566660597,0.34135425,3067.3,3067.0,1.067]
[1720566660903,0.94687805,3067.3,3067.0,1.067]
[1720566661054,0.34135425,3067.3,3067.0,1.067]
[1720566661493,0.34135425,3067.3,3066.8,1.067]
[1720566664156,2.4812,3067.2,3066.5,2.3753]
[1720566664361,0.60564131,3067.1,3066.7,1.067]
[1720566665710,2.4812,3067.2,3066.7,1.067]
[1720566665897,0.60572274,3067.1,3066.7,1.067]
[1720566666392,2.76345543,3067.2,3066.7,1.067]
[1720566666599,0.60572147,3067.1,3066.7,1.067]
[1720566666799,2.76345543,3067.2,3066.7,1.067]
[1720566667730,2.76345543,3067.2,3066.2,2.4568]
[1720566667939,0.34138309,3065.6,3065.5,2.2943]
[1720566668244,0.34138309,3065.6,3065.5,3.3613]
[1720566668530,0.34138309,3065.6,3065.5,1.067]
[1720566671671,0.34138309,3065.6,3065.5,3.4133]
[1720566672954,0.34138309,3065.6,3065.5,2.3463]
[1720566673124,0.34138309,3065.6,3065.5,3.64793]
[1720566673856,2.2526,3066.2,3065.2,2.3463]
[1720566674158,0.60605913,3066.1,3065.7,1.067]
[1720566676165,0.60605913,3066.1,3065.9,1.067]
[1720566676365,0.60610763,3066.1,3065.9,1.067]
[1720566676740,3.0,3066.4,3065.9,1.067]
[1720566676943,0.60608219,3066.3,3065.9,1.067]
[1720566677675,0.60600575,3066.3,3065.9,1.067]
[1720566678253,0.60600575,3066.3,3065.7,1.067]
[1720566679141,0.60600575,3066.3,3065.9,1.067]
[1720566680157,0.60606316,3066.3,3065.9,1.067]
[1720566680575,0.60606018,3066.3,3065.9,1.067]
[1720566681439,3.0,3066.4,3065.9,1.067]
[1720566687283,5.2926,3066.7,3065.9,1.067]
[1720566687463,1.20018097,3066.6,3065.9,1.067]
[1720566687671,4.20018097,3066.6,3065.9,1.067]
[1720566687994,0.6060761,3066.5,3064.9,3.26273]
[1720566688159,0.6060761,3066.5,3065.7,1.067]
[1720566688160,1.2553542,3066.5,3065.7,1.067]
[1720566688354,2.3816,3066.4,3065.7,1.067]
[1720566688549,0.96977152,3066.3,3065.1,2.4795]
[1720566688799,0.96977152,3066.3,3065.5,1.067]
[1720566688956,3.96977152,3066.3,3065.5,1.067]
[1720566689291,0.6060761,3066.2,3065.5,1.067]
[1720566689668,0.6060761,3066.2,3065.1,2.4795]
[1720566689866,0.39697715,3066.1,3065.3,1.067]
[1720566690377,2.2647,3066.0,3065.3,1.067]
[1720566690963,0.60627095,3065.9,3065.3,1.067]
[1720566691404,0.60627351,3065.9,3065.3,1.067]
[1720566691701,0.93306858,3065.9,3065.3,1.067]
[1720566694295,0.93306858,3065.9,3065.3,1.03427122]
[1720566694516,0.93306858,3065.9,3065.5,1.067]
[1720566694979,0.32679507,3065.9,3065.5,1.067]
[1720566695386,0.93303063,3065.9,3065.5,1.067]
[1720566697008,0.93302917,3065.9,3065.5,0.80771719]
[1720566697513,0.01646942,3065.6,3065.5,0.80771719]
[1720566703534,0.01646942,3065.6,3065.4,2.3124]
[1720566703710,0.01646942,3065.6,3065.5,1.067]
[1720566704410,0.01646942,3065.6,3065.3,1.067]
[1720566705135,0.01646942,3065.6,3065.5,1.067]
[1720566705852,0.01646942,3065.6,3065.2,0.23311]
[1720566706136,0.01646942,3065.6,3065.3,1.067]
[1720566706628,0.01646942,3065.4,3065.3,1.067]
[1720566708711,0.01646942,3065.4,3065.3,3.4206]
[1720566715565,0.01646942,3065.4,3065.2,2.4576]
[1720566715744,0.01646942,3065.3,3065.2,2.70336]
[1720566716070,0.01646942,3065.3,3065.2,3.5246]
[1720566721588,0.01646942,3065.3,3065.2,1.067]
[1720566724156,0.01646942,3065.3,3065.2,3.3875]
[1720566725972,0.01646942,3065.3,3065.2,2.3205]
[1720566726177,0.01646942,3065.3,3065.2,3.3875]
[1720566726393,0.01646942,3065.3,3065.2,4.052503]
[1720566726965,0.01646942,3065.3,3065.2,7.314923]
[1720566729054,0.01646942,3065.3,3065.2,1.732003]
[1720566729259,0.01646942,3065.3,3065.2,1.067]
[1720566730549,0.01646942,3065.3,3064.9,2.261]
[1720566730752,0.01646942,3065.3,3065.2,1.067]
[1720566737961,0.01646942,3065.3,3065.2,3.5648]
[1720566741667,0.01646942,3065.3,3065.2,1.067]
[1720566745609,0.01646942,3065.3,3065.2,3.3514]
[1720566745914,0.01646942,3065.3,3065.2,4.012786]
[1720566748448,0.01646942,3065.3,3065.2,10.537626]
[1720566749506,0.01646942,3065.3,3065.2,7.275206]
[1720566750047,0.01646942,3065.3,3065.2,10.537626]
[1720566751461,0.60590568,3066.3,3065.6,3.26194]
[1720566751761,0.60590568,3066.6,3066.2,1.067]
[1720566751925,0.60590568,3066.6,3066.5,1.067]
[1720566753052,3.0,3067.3,3066.5,1.067]
[1720566753053,0.60590568,3066.9,3066.5,1.067]
[1720566753266,0.60590568,3067.0,3066.9,1.067]
[1720566753565,0.60557052,3067.0,3066.9,1.067]
[1720566754567,2.4603,3067.1,3066.9,1.067]
[1720566756572,2.4603,3067.7,3066.9,1.067]
[1720566756735,0.60545019,3067.6,3067.2,1.067]
[1720566756937,3.60545019,3067.6,3067.2,1.067]
[1720566757132,0.60545019,3067.5,3067.2,1.067]
[1720566757779,3.0,3067.6,3067.4,1.067]
[1720566757981,2.4603,3068.1,3067.4,1.067]
[1720566758166,0.60523542,3068.0,3067.5,0.0651888]
[1720566758468,1.067,3069.0,3066.5,0.34583]
[1720566758469,2.4603,3068.8,3068.0,1.067]
[1720566758644,0.60502212,3068.7,3068.4,1.067]
[1720566758848,0.60502212,3068.7,3068.2,1.067]
[1720566759779,2.4603,3068.8,3068.2,1.067]
[1720566760077,0.85100411,3068.7,3068.2,1.067]
[1720566760245,0.24603,3068.7,3068.2,1.067]
[1720566760644,0.24603,3068.7,3068.4,1.067]
[1720566764100,0.24603,3068.7,3067.4,2.3913]
[1720566764254,2.3895,3068.6,3067.9,1.067]
[1720566766351,2.3895,3068.6,3068.1,1.067]
[1720566766668,2.3895,3068.6,3067.4,2.56]
[1720566773491,2.3895,3068.6,3067.0,2.56]
[1720566774032,2.3876,3068.4,3066.7,2.4592]
[1720566774185,2.3876,3068.3,3066.7,2.4592]
[1720566774393,2.9376,3068.2,3066.6,2.56]
[1720566774701,2.3876,3068.0,3066.6,3.06192]
[1720566782228,2.3876,3068.0,3066.6,2.56]
[1720566782431,0.3271,3067.7,3066.2,2.56]
[1720566782630,2.6953,3067.6,3066.2,2.56]
[1720566782946,2.7743,3067.2,3065.8,2.56]
[1720566783449,2.4472,3067.0,3065.8,2.56]
[1720566783761,2.4472,3066.8,3065.8,2.56]
[1720566783955,0.29972,3066.7,3065.8,2.56]
[1720566784321,2.4472,3066.6,3065.8,2.56]
[1720566784515,2.4472,3066.6,3065.4,2.56]
[1720566786354,2.4472,3066.3,3065.2,2.56]
[1720566799524,2.4472,3066.3,3065.2,4.8874]
[1720566799744,5.4472,3066.3,3065.3,0.06523575]
[1720566799943,2.4472,3066.3,3065.3,0.06523575]
[1720566800151,2.4472,3066.3,3065.4,0.49526358]
[1720566801367,2.4472,3066.3,3065.2,2.56]
[1720566802881,2.2505,3066.1,3065.2,2.56]
[1720566803175,2.2505,3066.0,3065.2,2.56]
[1720566805487,2.2505,3066.0,3064.7,3.26292]
[1720566805488,2.2505,3066.0,3064.8,2.56]
[1720566805688,2.2505,3066.0,3064.9,0.582292]
[1720566806776,2.2505,3066.0,3064.8,2.56]
[1720566816669,2.2505,3066.0,3065.4,1.068]
[1720566818054,2.2505,3066.0,3065.6,1.068]
[1720566819103,2.2505,3066.0,3065.4,1.068]
[1720566819279,2.2949,3065.8,3065.4,1.068]
[1720566824279,0.60621395,3065.7,3065.4,1.068]
[1720566826392,2.2949,3065.8,3065.4,1.068]
[1720566826587,0.60623083,3065.7,3065.4,1.068]
[1720566829911,2.2949,3065.8,3065.4,1.068]
[1720566830102,0.60622943,3065.7,3065.4,1.068]
[1720566830299,2.2949,3065.8,3065.4,1.068]
[1720566830634,0.60621839,3065.7,3065.4,1.068]
[1720566831137,0.60621839,3065.7,3064.9,0.06523712]
[1720566831138,0.60612457,3065.7,3065.6,1.068]
[1720566832610,0.94751171,3065.7,3065.6,1.068]
[1720566833325,0.94753018,3065.7,3065.6,1.068]
[1720566833498,0.94752273,3065.7,3065.6,1.068]
[1720566834304,0.94752273,3065.7,3065.4,1.068]
[1720566834762,1.271765,3065.7,3065.2,1.068]
[1720566834935,0.94752273,3065.7,3065.2,1.068]
[1720566835257,0.94752273,3065.7,3065.4,1.068]
[1720566836216,0.34138714,3065.7,3065.4,1.068]
[1720566841049,2.68948714,3065.7,3065.4,1.068]
[1720566841249,0.60615008,3065.6,3065.4,1.068]
[1720566841560,0.60615008,3065.6,3065.1,1.068]
[1720566842524,0.60624992,3065.6,3065.1,1.068]
[1720566845224,2.3481,3065.5,3064.2,2.3086]
[1720566845562,2.3481,3065.3,3064.4,1.068]
[1720566845721,2.3481,3065.3,3064.6,1.068]
[1720566845926,2.3481,3065.3,3064.2,2.3086]
[1720566845927,0.60655995,3065.2,3064.2,2.3086]
[1720566846133,0.90202594,3065.2,3064.7,1.068]
[1720566848047,0.34137782,3065.1,3064.7,1.068]
[1720566848369,0.34137782,3065.1,3064.9,1.068]
[1720566856685,0.34137782,3065.1,3064.7,1.068]
[1720566857037,0.34137782,3065.1,3064.4,2.3416]
[1720566857257,0.34137782,3065.1,3064.7,1.068]
[1720566857463,2.65247782,3065.1,3064.7,1.068]
[1720566857677,0.60645103,3065.0,3064.7,1.068]
[1720566859284,0.60645103,3065.0,3064.4,2.3416]
[1720566859470,0.60645103,3065.0,3064.6,1.068]
[1720566861025,0.60650781,3065.0,3064.6,1.068]
[1720566864063,0.34137416,3065.7,3064.8,1.068]
[1720566864225,2.3617,3065.6,3064.8,1.068]
[1720566864427,0.60637956,3065.5,3064.8,1.068]
[1720566864667,2.3617,3065.6,3064.8,1.068]
[1720566864835,0.98354178,3065.5,3064.8,1.068]
[1720566865227,0.98356792,3065.5,3064.8,1.068]
[1720566865458,0.98356792,3065.5,3064.6,1.068]
[1720566868141,2.4173,3065.4,3064.4,2.3416]
[1720566868436,0.60646963,3065.3,3064.6,1.068]
[1720566870525,0.60646963,3065.3,3064.4,2.3416]
[1720566870720,0.60646963,3065.3,3064.6,1.068]
[1720566870944,0.30237696,3065.2,3064.6,1.068]
[1720566872965,2.4074,3065.1,3064.5,1.068]
[1720566873171,0.60656933,3065.0,3064.5,1.068]
[1720566875425,0.60656301,3065.0,3064.5,1.068]
[1720566878368,2.4074,3065.1,3064.5,1.068]
[1720566878574,0.60655315,3065.0,3064.5,1.068]
[1720566881142,0.60655315,3065.0,3064.7,1.068]
[1720566881880,0.60651811,3065.0,3064.7,1.068]
[1720566885282,2.4074,3065.1,3064.7,1.068]
[1720566885478,0.60652593,3065.0,3064.7,1.068]
[1720566885882,0.60652593,3065.0,3064.5,1.068]
[1720566888759,0.60653604,3065.0,3064.5,1.068]
[1720566892088,0.60652598,3065.0,3064.5,1.068]
[1720566895604,0.90798367,3065.0,3064.5,1.068]
[1720566895770,0.90798367,3065.0,3064.3,1.068]
[1720566896112,0.90804578,3065.0,3064.3,1.068]
[1720566896810,0.9080404,3065.0,3064.3,1.068]
[1720566898196,2.4993,3064.9,3064.0,0.1135209]
[1720566898378,0.94738184,3064.8,3064.1,1.068]
[1720566898799,0.94738184,3064.8,3064.3,1.068]
[1720566898999,0.94743685,3064.8,3064.3,1.068]
[1720566900916,0.94743685,3064.8,3064.0,0.1135209]
[1720566901101,0.94743685,3064.8,3064.2,1.068]
[1720566901506,0.34073404,3064.8,3064.2,1.068]
[1720566901823,0.9474717,3064.8,3064.2,1.068]
[1720566903329,0.60673766,3064.8,3064.1,2.3266]
[1720566903536,2.3277,3065.1,3064.5,1.068]
[1720566903752,0.60673766,3065.0,3064.5,1.068]
[1720566904432,0.60673766,3065.0,3064.6,2.39185446]
[1720566904727,0.60673766,3065.2,3064.6,2.3266]
[1720566904940,0.84344989,3065.2,3064.5,1.068]
[1720566905317,0.84342543,3065.2,3064.5,1.068]
[1720566905854,0.60655543,3065.2,3064.7,1.068]
[1720566906014,0.60655543,3065.2,3064.9,1.068]
[1720566906709,0.60655543,3065.2,3064.7,1.068]
[1720566908250,2.3687,3065.3,3064.7,1.068]
[1720566908251,3.0,3065.5,3064.7,1.068]
[1720566908465,0.60645139,3065.4,3064.7,1.41947]
[1720566908615,3.60645139,3065.5,3064.7,1.41947]
[1720566908818,0.60645139,3065.4,3064.7,1.41947]
[1720566910351,0.60645139,3065.4,3064.7,1.068]
[1720566910672,0.60645139,3065.4,3065.3,3.5022]
[1720566910820,0.60645139,3066.3,3065.3,4.39545695]
[1720566911142,0.60645139,3066.6,3066.2,1.068]
[1720566911314,6.13874874,3067.0,3066.3,0.06522059]
[1720566911315,0.60645139,3066.9,3066.3,0.06522059]
[1720566911650,0.60565941,3066.9,3066.4,1.068]
[1720566911809,0.30959594,3066.8,3066.2,1.068]
[1720566914777,0.30959594,3066.8,3065.0,3.0]
[1720566914778,1.068,3066.3,3065.1,2.4884]
[1720566914951,1.068,3066.1,3065.1,2.4884]
[1720566915153,1.67381946,3066.1,3065.0,1.068]
[1720566915374,0.60626054,3066.0,3065.0,1.068]
[1720566915567,4.67426054,3066.1,3065.0,1.068]
[1720566915770,0.96290054,3066.0,3065.0,1.068]
[1720566916080,0.96290054,3066.0,3065.2,1.068]
[1720566916081,0.96287171,3066.0,3065.2,1.068]
[1720566916282,0.96287171,3066.0,3065.4,1.068]
[1720566916499,2.4984,3066.2,3065.4,1.068]
[1720566916801,2.4984,3066.2,3065.6,1.068]
[1720566916962,3.0,3066.4,3065.6,1.068]
[1720566917290,2.3977,3066.6,3065.8,1.068]
[1720566917291,0.3,3066.3,3065.8,1.068]
[1720566917463,3.60599513,3066.5,3065.8,1.068]
[1720566917788,3.60599513,3066.4,3065.8,1.068]
[1720566918089,5.3977,3066.6,3065.8,1.068]
[1720566918489,0.6059922,3066.5,3065.8,1.068]
[1720566918647,0.60036922,3066.4,3065.4,2.3711]
[1720566918994,1.20636142,3066.4,3065.1,2.563]
[1720566919198,1.20636142,3066.4,3065.0,5.63372]
[1720566919386,1.20636142,3066.4,3065.0,2.3711]
[1720566919555,0.97063614,3066.3,3065.0,2.3711]
[1720566919910,1.57662834,3066.3,3065.0,2.3711]
[1720566920190,4.57662834,3066.3,3065.0,2.3711]
[1720566920487,3.42063614,3066.3,3065.0,5.63368]
[1720566920687,0.42063614,3066.3,3065.1,0.563368]
[1720566923065,0.42063614,3066.3,3065.0,2.3711]
[1720566923686,2.4664,3066.2,3064.7,2.563]
[1720566923884,2.4664,3066.2,3064.6,2.3399]
[1720566923885,1.15615407,3066.1,3064.6,2.3399]
[1720566924100,0.66225541,3066.0,3064.6,2.3399]
[1720566924412,1.26840948,3066.0,3064.6,2.3399]
[1720566924631,2.2966,3065.9,3064.3,5.82632]
[1720566924774,2.2966,3065.9,3064.3,2.563]
[1720566924775,0.60615407,3065.8,3064.3,2.563]
[1720566924977,0.35650095,3065.8,3064.4,0.823289]
[1720566925318,3.9629506,3065.8,3064.4,0.823289]
[1720566925628,0.60646883,3065.7,3064.4,3.823289]
[1720566925784,0.39629698,3065.6,3064.5,0.34042118]
[1720566930366,0.60646457,3065.7,3064.5,0.34042118]
[1720566931865,3.35650095,3065.8,3064.5,0.34042118]
[1720566932073,0.60644312,3065.7,3064.5,0.34042118]
[1720566934723,0.60644312,3065.7,3064.3,2.563]
[1720566935073,2.3844,3065.6,3063.9,5.82681]
[1720566935435,2.99099424,3065.5,3063.9,5.82681]
[1720566935769,3.60659849,3065.4,3063.9,2.563]
[1720566936062,3.45659834,3065.3,3064.1,0.26765209]
[1720566936219,0.60659849,3065.2,3064.1,0.26765209]
[1720566938167,2.2509,3065.3,3064.2,2.4554]
[1720566938369,2.2509,3065.3,3064.3,0.27230521]
[1720566939646,0.60658921,3065.2,3064.3,0.27230521]
[1720566939950,2.2509,3065.3,3064.3,0.27230521]
[1720566940161,0.60657598,3065.2,3064.3,0.27230521]
[1720566940480,2.2509,3065.3,3064.3,0.27230521]
[1720566940631,2.2509,3065.3,3064.4,0.27277052]
[1720566942732,2.2509,3065.3,3064.6,1.069]
[1720566943941,0.60657814,3065.2,3064.6,1.069]
[1720566944353,0.6065672,3065.2,3064.6,1.069]
[1720566944670,0.6065708,3065.2,3064.2,2.4554]
[1720566944982,0.6065708,3065.2,3064.6,1.069]
[1720566945564,2.2509,3065.3,3064.6,1.069]
[1720566945736,0.60657042,3065.2,3064.6,1.069]
[1720566945941,2.2509,3065.3,3064.6,1.069]
[1720566946266,0.83166309,3065.2,3064.6,1.069]
[1720566947159,0.22509,3065.2,3064.6,1.069]
[1720566948172,0.83164868,3065.2,3064.6,1.069]
[1720566948587,0.22509,3065.2,3064.6,1.069]
[1720566948890,2.2509,3065.3,3064.6,1.069]
[1720566949392,0.60654136,3065.2,3064.6,1.069]
[1720566949784,2.2509,3065.3,3064.6,1.069]
[1720566950099,0.60652724,3065.2,3064.6,1.069]
[1720566950404,2.2509,3065.3,3064.6,1.069]
[1720566951979,2.3139,3065.6,3064.8,1.069]
[1720566952163,0.6064722,3065.5,3064.8,1.40367]
[1720566952378,3.0,3065.5,3064.8,1.40367]
[1720566952771,2.3139,3065.6,3064.8,1.40367]
[1720566952975,0.60641618,3065.5,3064.8,1.40367]
[1720566953220,3.60641618,3065.5,3064.8,1.40367]
[1720566953356,3.0,3065.5,3064.8,1.40367]
[1720566953559,0.60643577,3065.4,3064.8,1.40367]
[1720566953781,3.60643577,3065.5,3064.8,1.40367]
[1720566954108,3.0,3065.4,3064.8,1.40367]
[1720566954283,2.3139,3065.6,3064.8,1.40367]
[1720566954623,0.60641142,3065.5,3064.8,1.40367]
[1720566954791,3.60641142,3065.5,3064.8,1.40367]
[1720566954981,3.0,3065.5,3064.8,1.40367]
[1720566955184,2.3139,3065.6,3064.8,1.40367]
[1720566955395,0.60642497,3065.5,3064.8,1.40367]
[1720566955715,3.60642497,3065.5,3064.8,1.40367]
[1720566955883,3.0,3065.5,3064.8,1.40367]
[1720566956088,2.3139,3065.6,3064.8,1.40367]
[1720566956492,0.60641487,3065.5,3064.8,1.40367]
[1720566956695,3.60641487,3065.5,3064.8,1.40367]
[1720566956895,3.0,3065.5,3064.8,1.40367]
[1720566957226,0.60641254,3065.4,3064.8,1.40367]
[1720566957384,3.60641254,3065.5,3064.8,1.40367]
[1720566957584,3.60641254,3065.4,3064.8,1.40367]
[1720566957921,2.3139,3065.6,3064.8,1.40367]
[1720566958129,0.60641469,3065.5,3064.8,1.40367]
[1720566958310,3.60641469,3065.5,3064.8,1.40367]
[1720566958488,0.60641469,3065.4,3064.8,1.40367]
[1720566959425,0.60639708,3065.4,3064.8,1.40367]
[1720566961106,0.60639708,3065.4,3065.1,2.3309]
[1720566961333,0.60639708,3065.8,3065.3,1.069]
[1720566961552,2.4988,3066.2,3065.1,3.3999]
[1720566961553,0.60639708,3066.1,3065.1,3.3999]
[1720566961854,2.29012195,3066.1,3065.1,3.3999]
[1720566962059,2.29012195,3066.1,3065.1,2.3309]
[1720566962060,0.60629049,3066.0,3065.1,2.3309]
[1720566962352,2.2825,3065.9,3065.0,1.069]
[1720566962532,0.89516954,3065.8,3065.0,1.069]
[1720566962744,3.60629049,3065.8,3065.3,2.4054]
[1720566962925,0.60629049,3065.7,3065.3,2.4054]
[1720566963326,0.60629049,3066.0,3065.3,2.4054]
[1720566963613,0.60629049,3066.0,3065.4,1.069]
[1720566964754,1.20568954,3066.0,3065.4,1.069]
[1720566964911,4.20568954,3066.0,3065.3,2.4054]
[1720566965115,3.59939905,3066.0,3065.3,2.4054]
[1720566965352,0.60624579,3065.9,3065.3,2.4054]
[1720566965665,1.02679042,3065.9,3065.3,2.4054]
[1720566965826,0.42056448,3065.9,3065.3,2.4054]
[1720566967334,0.60622594,3066.0,3065.3,2.4054]
[1720566967570,0.60622594,3066.0,3065.4,1.069]
[1720566968637,0.60615344,3066.0,3065.4,1.069]
[1720566969702,0.60615344,3066.2,3065.4,1.069]